[Event "Early-Titled-Tuesday-Blitz-May-07-2024"]
[Site "Chess.com"]
[Date "2024.05.07"]
[Round "3"]
[White "guillembaches"]
[Black "Smiechu"]
[Result "1/2-1/2"]
[WhiteElo "2577"]
[BlackElo "2390"]
[TimeControl "180+1"]
[EndTime "8:32:07 PDT"]
[Termination "Game drawn by repetition"]

1. d4 {[%clk 0:03:00.9]} 1... Nf6 {[%clk 0:02:59.6]} 2. Nf3 {[%clk 0:03:01.3]}
2... c5 {[%clk 0:02:59.9]} 3. d5 {[%clk 0:02:59.8]} 3... e6 {[%clk 0:03:00]} 4.
Nc3 {[%clk 0:02:59.5]} 4... b5 {[%clk 0:02:59.1]} 5. Nxb5 {[%clk 0:02:48.4]}
5... Nxd5 {[%clk 0:02:56]} 6. e4 {[%clk 0:02:44.9]} 6... a6 {[%clk 0:02:50]} 7.
Na3 {[%clk 0:02:26.6]} 7... Nf6 {[%clk 0:02:43.6]} 8. e5 {[%clk 0:02:15.2]} 8...
Nd5 {[%clk 0:02:42]} 9. Nc4 {[%clk 0:02:11.4]} 9... Be7 {[%clk 0:02:25.4]} 10.
Bd3 {[%clk 0:02:04.6]} 10... Bb7 {[%clk 0:02:12.8]} 11. O-O {[%clk 0:02:01.4]}
11... Nb4 {[%clk 0:02:05.3]} 12. Be2 {[%clk 0:01:54.7]} 12... N8c6 {[%clk
0:01:55.7]} 13. b3 {[%clk 0:01:40.8]} 13... Nd5 {[%clk 0:01:47.1]} 14. Bd2
{[%clk 0:01:33.3]} 14... O-O {[%clk 0:01:41.3]} 15. Re1 {[%clk 0:01:33.3]} 15...
h6 {[%clk 0:01:33.4]} 16. a3 {[%clk 0:01:29.6]} 16... Nb6 {[%clk 0:01:26.3]} 17.
Na5 {[%clk 0:01:16.7]} 17... Nxa5 {[%clk 0:01:09.4]} 18. Bxa5 {[%clk 0:01:17.6]}
18... Rb8 {[%clk 0:01:04.6]} 19. Nd2 {[%clk 0:01:12.3]} 19... Bd5 {[%clk
0:01:03.7]} 20. Bxa6 {[%clk 0:01:02.9]} 20... Ra8 {[%clk 0:01:00.9]} 21. Qe2
{[%clk 0:00:51.2]} 21... c4 {[%clk 0:00:47.7]} 22. Bxb6 {[%clk 0:00:40.3]} 22...
Qxb6 {[%clk 0:00:45.5]} 23. Bxc4 {[%clk 0:00:40.2]} 23... Bxa3 {[%clk
0:00:29.4]} 24. Bxd5 {[%clk 0:00:32.7]} 24... exd5 {[%clk 0:00:29.1]} 25. Nf3
{[%clk 0:00:30.5]} 25... Bb4 {[%clk 0:00:20]} 26. Rxa8 {[%clk 0:00:20.2]} 26...
Rxa8 {[%clk 0:00:20.9]} 27. Rd1 {[%clk 0:00:19.4]} 27... Qc5 {[%clk 0:00:20.6]}
28. g3 {[%clk 0:00:16.9]} 28... Rc8 {[%clk 0:00:20]} 29. Kg2 {[%clk 0:00:16.6]}
29... Qxc2 {[%clk 0:00:18]} 30. Qxc2 {[%clk 0:00:16.4]} 30... Rxc2 {[%clk
0:00:18.5]} 31. Rxd5 {[%clk 0:00:16.6]} 31... Rb2 {[%clk 0:00:18.1]} 32. Rxd7
{[%clk 0:00:16.1]} 32... Rxb3 {[%clk 0:00:17.9]} 33. Rd1 {[%clk 0:00:15.4]}
33... Rb2 {[%clk 0:00:17.7]} 34. h4 {[%clk 0:00:12.6]} 34... h5 {[%clk
0:00:17.6]} 35. Rc1 {[%clk 0:00:12.5]} 35... Kf8 {[%clk 0:00:17.4]} 36. Rc4
{[%clk 0:00:12.6]} 36... Ke7 {[%clk 0:00:16.1]} 37. Re4 {[%clk 0:00:11.8]} 37...
Bc5 {[%clk 0:00:15.1]} 38. Nd4 {[%clk 0:00:11.8]} 38... Kd7 {[%clk 0:00:13.3]}
39. Ne2 {[%clk 0:00:11.5]} 39... Ke6 {[%clk 0:00:12.7]} 40. f4 {[%clk
0:00:11.5]} 40... f6 {[%clk 0:00:10.2]} 41. exf6+ {[%clk 0:00:10.7]} 41... Kxf6
{[%clk 0:00:10.6]} 42. Kf3 {[%clk 0:00:10.9]} 42... Rb3+ {[%clk 0:00:10.4]} 43.
Kg2 {[%clk 0:00:11.2]} 43... Rb2 {[%clk 0:00:10.9]} 44. Kf3 {[%clk 0:00:11.2]}
44... Rb3+ {[%clk 0:00:11.3]} 45. Kg2 {[%clk 0:00:11.6]} 45... Rb2 {[%clk
0:00:11.9]} 1/2-1/2

[Event "Early-Titled-Tuesday-Blitz-May-07-2024"]
[Site "Chess.com"]
[Date "2024.05.07"]
[Round "3"]
[White "Shivananda1964"]
[Black "lefonghua"]
[Result "1-0"]
[WhiteElo "2394"]
[BlackElo "2569"]
[TimeControl "180+1"]
[EndTime "8:32:07 PDT"]
[Termination "Shivananda1964 won by resignation"]

1. Nf3 {[%clk 0:02:59.6]} 1... Nf6 {[%clk 0:02:59]} 2. d4 {[%clk 0:02:57.5]}
2... g6 {[%clk 0:02:58.1]} 3. g3 {[%clk 0:02:57.5]} 3... Bg7 {[%clk 0:02:58.5]}
4. Bg2 {[%clk 0:02:57.9]} 4... O-O {[%clk 0:02:59.1]} 5. O-O {[%clk 0:02:58.4]}
5... d6 {[%clk 0:02:59.7]} 6. Nc3 {[%clk 0:02:57.5]} 6... c5 {[%clk 0:02:59]} 7.
d5 {[%clk 0:02:57.2]} 7... e6 {[%clk 0:02:57.2]} 8. e4 {[%clk 0:02:56.3]} 8...
exd5 {[%clk 0:02:57.5]} 9. exd5 {[%clk 0:02:56.4]} 9... Bg4 {[%clk 0:02:54.4]}
10. Bf4 {[%clk 0:02:49.6]} 10... a6 {[%clk 0:02:52.4]} 11. a4 {[%clk 0:02:48.8]}
11... Qc7 {[%clk 0:02:48.2]} 12. h3 {[%clk 0:02:43.7]} 12... Bxf3 {[%clk
0:02:47.8]} 13. Qxf3 {[%clk 0:02:41.6]} 13... Nbd7 {[%clk 0:02:47.4]} 14. g4
{[%clk 0:02:40.6]} 14... Ne8 {[%clk 0:02:44.1]} 15. Rfe1 {[%clk 0:02:36.4]}
15... Ne5 {[%clk 0:02:42.4]} 16. Qg3 {[%clk 0:02:26.5]} 16... f5 {[%clk
0:02:34.3]} 17. g5 {[%clk 0:02:05.8]} 17... Rb8 {[%clk 0:02:25.7]} 18. Rad1
{[%clk 0:01:48.9]} 18... b5 {[%clk 0:02:17.1]} 19. axb5 {[%clk 0:01:49]} 19...
axb5 {[%clk 0:02:18]} 20. b3 {[%clk 0:01:49.2]} 20... Qd7 {[%clk 0:01:47.3]} 21.
Ra1 {[%clk 0:01:32.9]} 21... b4 {[%clk 0:01:37]} 22. Ne2 {[%clk 0:01:23.8]}
22... Nf7 {[%clk 0:01:34.2]} 23. Rad1 {[%clk 0:01:12]} 23... Nc7 {[%clk
0:01:31.1]} 24. h4 {[%clk 0:01:01.3]} 24... Nb5 {[%clk 0:01:29.4]} 25. h5 {[%clk
0:00:59.7]} 25... Ra8 {[%clk 0:01:19.6]} 26. Be3 {[%clk 0:00:33.2]} 26... Ne5
{[%clk 0:00:59.6]} 27. Nf4 {[%clk 0:00:31.7]} 27... Ra2 {[%clk 0:00:49.8]} 28.
Rd2 {[%clk 0:00:24.5]} 28... Nc3 {[%clk 0:00:39.7]} 29. Ne6 {[%clk 0:00:21.2]}
29... Re8 {[%clk 0:00:36.8]} 30. Nxg7 {[%clk 0:00:11.4]} 30... Kxg7 {[%clk
0:00:37.7]} 31. h6+ {[%clk 0:00:09.8]} 31... Kf7 {[%clk 0:00:34.8]} 32. Bxc5
{[%clk 0:00:10.5]} 32... dxc5 {[%clk 0:00:07.6]} 33. Rxe5 {[%clk 0:00:09.8]}
33... Ra1+ {[%clk 0:00:08.2]} 34. Kh2 {[%clk 0:00:09.6]} 34... Rxe5 {[%clk
0:00:05.7]} 35. Qxe5 {[%clk 0:00:09.5]} 35... Rd1 {[%clk 0:00:05.5]} 36. Qg7+
{[%clk 0:00:05.2]} 36... Ke8 {[%clk 0:00:04.8]} 37. Qg8+ {[%clk 0:00:05.3]}
37... Ke7 {[%clk 0:00:05.3]} 38. d6+ {[%clk 0:00:05.3]} 38... Qxd6+ {[%clk
0:00:03.7]} 39. Rxd6 {[%clk 0:00:05]} 1-0

[Event "Early-Titled-Tuesday-Blitz-May-07-2024"]
[Site "Chess.com"]
[Date "2024.05.07"]
[Round "3"]
[White "Ural_bogatyr"]
[Black "Acva-Alenok"]
[Result "1-0"]
[WhiteElo "2574"]
[BlackElo "2340"]
[TimeControl "180+1"]
[EndTime "8:32:07 PDT"]
[Termination "Ural_bogatyr won on time"]

1. d4 {[%clk 0:03:00.9]} 1... Nf6 {[%clk 0:02:58.5]} 2. Nc3 {[%clk 0:02:59.5]}
2... d5 {[%clk 0:02:54.4]} 3. Bf4 {[%clk 0:02:59.8]} 3... c6 {[%clk 0:02:46.4]}
4. e3 {[%clk 0:02:58.7]} 4... Bf5 {[%clk 0:02:44.9]} 5. f3 {[%clk 0:02:57.5]}
5... h5 {[%clk 0:02:44]} 6. Bd3 {[%clk 0:02:56.5]} 6... e6 {[%clk 0:02:27.9]} 7.
e4 {[%clk 0:02:50.4]} 7... dxe4 {[%clk 0:02:14.9]} 8. fxe4 {[%clk 0:02:49.3]}
8... Bg4 {[%clk 0:02:03.7]} 9. Qd2 {[%clk 0:02:23.7]} 9... h4 {[%clk 0:01:46.2]}
10. h3 {[%clk 0:02:19.6]} 10... Bh5 {[%clk 0:01:41.8]} 11. Nge2 {[%clk
0:02:19.4]} 11... Bb4 {[%clk 0:01:25.9]} 12. Qe3 {[%clk 0:02:12.3]} 12... Bxe2
{[%clk 0:00:59.9]} 13. Bxe2 {[%clk 0:02:07.2]} 13... Nh5 {[%clk 0:00:56.3]} 14.
Bg5 {[%clk 0:01:58.7]} 14... Be7 {[%clk 0:00:56.3]} 15. Bxe7 {[%clk 0:01:49.8]}
15... Qxe7 {[%clk 0:00:57.2]} 16. O-O-O {[%clk 0:01:43.7]} 16... Ng3 {[%clk
0:00:53.6]} 17. Rhe1 {[%clk 0:01:43.4]} 17... Nd7 {[%clk 0:00:39.6]} 18. Bf3
{[%clk 0:01:39.7]} 18... Nb6 {[%clk 0:00:20.1]} 19. d5 {[%clk 0:01:35.7]} 19...
Nc4 {[%clk 0:00:17.8]} 20. Qd4 {[%clk 0:01:28.3]} 20... Qb4 {[%clk 0:00:17.9]}
21. Ne2 {[%clk 0:01:23.3]} 21... e5 {[%clk 0:00:16.3]} 22. Qc3 {[%clk
0:01:20.7]} 22... Qxc3 {[%clk 0:00:16.2]} 23. Nxc3 {[%clk 0:01:21.6]} 23...
O-O-O {[%clk 0:00:09.7]} 24. b3 {[%clk 0:01:17.6]} 24... Nd6 {[%clk 0:00:07.5]}
25. dxc6 {[%clk 0:01:14.2]} 25... bxc6 {[%clk 0:00:08.4]} 26. a4 {[%clk
0:01:10.3]} 26... Kc7 {[%clk 0:00:08.7]} 27. Kb2 {[%clk 0:01:09.3]} 27... Nb7
{[%clk 0:00:08.1]} 28. b4 {[%clk 0:01:07.5]} 28... a5 {[%clk 0:00:08.2]} 29. Na2
{[%clk 0:01:04.5]} 29... axb4 {[%clk 0:00:06.4]} 30. Nxb4 {[%clk 0:01:05.4]}
30... Nc5 {[%clk 0:00:07]} 31. Ra1 {[%clk 0:01:02.5]} 31... Rb8 {[%clk
0:00:06.2]} 32. Kc3 {[%clk 0:01:00.8]} 32... Rb7 {[%clk 0:00:03.5]} 33. a5
{[%clk 0:00:57.7]} 33... Rhb8 {[%clk 0:00:02.6]} 34. Rab1 {[%clk 0:00:54.5]}
34... Rb5 {[%clk 0:00:02.7]} 35. a6 {[%clk 0:00:48.3]} 35... Kb6 {[%clk
0:00:01.9]} 36. Kc4 {[%clk 0:00:44.5]} 36... Ra8 {[%clk 0:00:01.7]} 37. Ra1
{[%clk 0:00:36]} 37... Nxa6 {[%clk 0:00:01.6]} 38. c3 {[%clk 0:00:26]} 1-0

[Event "Early-Titled-Tuesday-Blitz-May-07-2024"]
[Site "Chess.com"]
[Date "2024.05.07"]
[Round "3"]
[White "kidagent"]
[Black "edgarhay012"]
[Result "0-1"]
[WhiteElo "2371"]
[BlackElo "2672"]
[TimeControl "180+1"]
[EndTime "8:32:08 PDT"]
[Termination "edgarhay012 won by resignation"]

1. e4 {[%clk 0:03:00.9]} 1... c5 {[%clk 0:02:57.9]} 2. Nf3 {[%clk 0:03:00.9]}
2... e6 {[%clk 0:02:57.9]} 3. d4 {[%clk 0:03:00.8]} 3... cxd4 {[%clk 0:02:58.8]}
4. Nxd4 {[%clk 0:03:01.1]} 4... Nf6 {[%clk 0:02:59.3]} 5. Nc3 {[%clk 0:03:01]}
5... Nc6 {[%clk 0:02:59.7]} 6. Ndb5 {[%clk 0:02:57.9]} 6... Bb4 {[%clk
0:02:58.1]} 7. a3 {[%clk 0:02:57.2]} 7... Bxc3+ {[%clk 0:02:58.1]} 8. Nxc3
{[%clk 0:02:57.3]} 8... d5 {[%clk 0:02:58.8]} 9. exd5 {[%clk 0:02:57.3]} 9...
exd5 {[%clk 0:02:59.7]} 10. Bd3 {[%clk 0:02:57.5]} 10... O-O {[%clk 0:02:59.9]}
11. O-O {[%clk 0:02:57]} 11... d4 {[%clk 0:03:00.5]} 12. Ne2 {[%clk 0:02:56.9]}
12... Re8 {[%clk 0:03:00.1]} 13. Bg5 {[%clk 0:02:48.8]} 13... h6 {[%clk
0:03:00.1]} 14. Bh4 {[%clk 0:02:48.2]} 14... g5 {[%clk 0:02:57.2]} 15. Bg3
{[%clk 0:02:48.1]} 15... Ne4 {[%clk 0:02:57.6]} 16. Bxe4 {[%clk 0:02:33]} 16...
Rxe4 {[%clk 0:02:58.5]} 17. Re1 {[%clk 0:02:29.3]} 17... Bf5 {[%clk 0:02:54.4]}
18. Qd2 {[%clk 0:02:26.8]} 18... Qf6 {[%clk 0:02:48.6]} 19. f3 {[%clk
0:02:23.6]} 19... Re6 {[%clk 0:02:43.7]} 20. Bf2 {[%clk 0:02:22.2]} 20... Rd8
{[%clk 0:02:43.6]} 21. Rad1 {[%clk 0:02:21]} 21... d3 {[%clk 0:02:41.8]} 22.
cxd3 {[%clk 0:02:19.8]} 22... Rxd3 {[%clk 0:02:41.4]} 23. Qc1 {[%clk 0:01:39.9]}
23... Rxd1 {[%clk 0:02:39.3]} 24. Qxd1 {[%clk 0:01:40]} 24... Qxb2 {[%clk
0:02:38.9]} 25. a4 {[%clk 0:01:31.6]} 25... Qc2 {[%clk 0:02:30]} 26. Ng3 {[%clk
0:01:23.1]} 26... Qxd1 {[%clk 0:02:24.7]} 27. Rxd1 {[%clk 0:01:22.9]} 27... Bc2
{[%clk 0:02:19.6]} 28. Rd7 {[%clk 0:01:22.7]} 28... b6 {[%clk 0:02:15]} 29. a5
{[%clk 0:01:19.5]} 29... bxa5 {[%clk 0:02:12.3]} 30. Bxa7 {[%clk 0:01:17]} 30...
Re7 {[%clk 0:01:14.9]} 31. Rxe7 {[%clk 0:01:15.8]} 31... Nxe7 {[%clk 0:01:15.8]}
32. Bc5 {[%clk 0:01:13.9]} 32... Nd5 {[%clk 0:01:15.4]} 33. Kf2 {[%clk
0:01:13.2]} 33... Kg7 {[%clk 0:01:13.4]} 34. Nf1 {[%clk 0:01:06]} 34... Nf4
{[%clk 0:01:12.8]} 35. Bd4+ {[%clk 0:01:01.2]} 35... Kg6 {[%clk 0:01:12.6]} 36.
g3 {[%clk 0:01:01]} 36... Nd3+ {[%clk 0:01:09.6]} 37. Ke3 {[%clk 0:01:00.9]}
37... Nb4 {[%clk 0:01:02.6]} 38. Kd2 {[%clk 0:00:59.8]} 38... Bf5 {[%clk
0:00:58.6]} 39. Kc3 {[%clk 0:00:55.8]} 39... Be6 {[%clk 0:00:57.2]} 40. Nd2
{[%clk 0:00:41.2]} 40... Nc6 {[%clk 0:00:53.1]} 41. Bc5 {[%clk 0:00:40.4]} 41...
f5 {[%clk 0:00:45.9]} 42. Bd6 {[%clk 0:00:34.6]} 42... Kf6 {[%clk 0:00:38.5]}
43. f4 {[%clk 0:00:34]} 43... Kg6 {[%clk 0:00:37.1]} 44. Nf3 {[%clk 0:00:31.8]}
44... Kh5 {[%clk 0:00:35]} 45. h3 {[%clk 0:00:30.1]} 45... g4 {[%clk 0:00:30.2]}
46. hxg4+ {[%clk 0:00:18.8]} 46... Kxg4 {[%clk 0:00:31.1]} 47. Nh4 {[%clk
0:00:06.8]} 47... Kxg3 {[%clk 0:00:28.4]} 48. Ng6 {[%clk 0:00:07.1]} 48... h5
{[%clk 0:00:26.4]} 49. Be7 {[%clk 0:00:07.2]} 49... Nxe7 {[%clk 0:00:25.7]} 0-1

[Event "Early-Titled-Tuesday-Blitz-May-07-2024"]
[Site "Chess.com"]
[Date "2024.05.07"]
[Round "3"]
[White "YouShallNotPass001"]
[Black "Puzzlebot_1294"]
[Result "0-1"]
[WhiteElo "2453"]
[BlackElo "2623"]
[TimeControl "180+1"]
[EndTime "8:32:08 PDT"]
[Termination "Puzzlebot_1294 won on time"]

1. e4 {[%clk 0:03:00.9]} 1... e5 {[%clk 0:02:57.8]} 2. Nf3 {[%clk 0:02:58.3]}
2... Nc6 {[%clk 0:02:57.5]} 3. Bb5 {[%clk 0:02:59]} 3... Nge7 {[%clk 0:02:57.3]}
4. Nc3 {[%clk 0:02:48.5]} 4... g6 {[%clk 0:02:55.4]} 5. d4 {[%clk 0:02:46.1]}
5... exd4 {[%clk 0:02:56.3]} 6. Nxd4 {[%clk 0:02:46.2]} 6... Bg7 {[%clk
0:02:56.4]} 7. Be3 {[%clk 0:02:46.4]} 7... a6 {[%clk 0:02:54.7]} 8. Bc4 {[%clk
0:02:39.8]} 8... O-O {[%clk 0:02:53.4]} 9. Qd2 {[%clk 0:02:38.3]} 9... b5 {[%clk
0:02:53.8]} 10. Bb3 {[%clk 0:02:37.5]} 10... Na5 {[%clk 0:02:52.9]} 11. h4
{[%clk 0:02:33.6]} 11... c5 {[%clk 0:02:17.8]} 12. h5 {[%clk 0:01:50.3]} 12...
cxd4 {[%clk 0:01:52.4]} 13. Bxd4 {[%clk 0:01:48.8]} 13... Nxb3 {[%clk
0:01:52.4]} 14. axb3 {[%clk 0:01:47.2]} 14... f6 {[%clk 0:01:52.1]} 15. O-O-O
{[%clk 0:01:44.9]} 15... Bb7 {[%clk 0:01:44.6]} 16. hxg6 {[%clk 0:01:38]} 16...
Nxg6 {[%clk 0:01:29.3]} 17. Rh5 {[%clk 0:01:32.6]} 17... Rf7 {[%clk 0:01:06.6]}
18. Rdh1 {[%clk 0:01:27.6]} 18... Nf8 {[%clk 0:01:06.9]} 19. f3 {[%clk
0:01:23.9]} 19... Rc8 {[%clk 0:01:04.7]} 20. Ne2 {[%clk 0:01:21.7]} 20... d5
{[%clk 0:00:57]} 21. exd5 {[%clk 0:01:09.9]} 21... Bxd5 {[%clk 0:00:55.7]} 22.
Kb1 {[%clk 0:01:04.4]} 22... Be6 {[%clk 0:00:48.7]} 23. Qd3 {[%clk 0:01:00.2]}
23... Rd7 {[%clk 0:00:28.7]} 24. Rxh7 {[%clk 0:00:51.6]} 24... Nxh7 {[%clk
0:00:25.1]} 25. Qxh7+ {[%clk 0:00:49.1]} 25... Kf8 {[%clk 0:00:23.6]} 26. Nf4
{[%clk 0:00:40.7]} 26... Bf7 {[%clk 0:00:23.2]} 27. Bc3 {[%clk 0:00:40.1]} 27...
Qe7 {[%clk 0:00:18.4]} 28. Re1 {[%clk 0:00:25.1]} 28... Qc5 {[%clk 0:00:16.6]}
29. Ng6+ {[%clk 0:00:12]} 29... Bxg6 {[%clk 0:00:16.3]} 30. Qxg6 {[%clk
0:00:12.9]} 30... b4 {[%clk 0:00:15.9]} 31. Bxf6 {[%clk 0:00:12.9]} 31... Qc6
{[%clk 0:00:11.3]} 32. Bxg7+ {[%clk 0:00:10.4]} 32... Rxg7 {[%clk 0:00:11.9]}
33. Qf5+ {[%clk 0:00:08.9]} 33... Rf7 {[%clk 0:00:11.9]} 34. Qd3 {[%clk
0:00:08.3]} 34... Qf6 {[%clk 0:00:08]} 35. Re4 {[%clk 0:00:07.5]} 35... Rd8
{[%clk 0:00:07.8]} 36. Qe2 {[%clk 0:00:06.6]} 36... Qd6 {[%clk 0:00:07.1]} 37.
Ka2 {[%clk 0:00:05.6]} 37... Rf5 {[%clk 0:00:06.5]} 38. Kb1 {[%clk 0:00:01.6]}
38... Ra5 {[%clk 0:00:07]} 0-1

[Event "Early-Titled-Tuesday-Blitz-May-07-2024"]
[Site "Chess.com"]
[Date "2024.05.07"]
[Round "3"]
[White "FoggyMorning"]
[Black "Jojo_898"]
[Result "1-0"]
[WhiteElo "2612"]
[BlackElo "2436"]
[TimeControl "180+1"]
[EndTime "8:32:09 PDT"]
[Termination "FoggyMorning won by resignation"]

1. e4 {[%clk 0:03:00.9]} 1... d6 {[%clk 0:02:59.5]} 2. d4 {[%clk 0:03:00.5]}
2... Nf6 {[%clk 0:02:59.6]} 3. Nc3 {[%clk 0:03:01.3]} 3... g6 {[%clk 0:02:57.8]}
4. Be3 {[%clk 0:03:00.9]} 4... c6 {[%clk 0:02:57.9]} 5. Qd2 {[%clk 0:03:01.3]}
5... h5 {[%clk 0:02:57.3]} 6. f3 {[%clk 0:02:58.2]} 6... b5 {[%clk 0:02:57.4]}
7. a3 {[%clk 0:02:56.1]} 7... Bg7 {[%clk 0:02:57.3]} 8. O-O-O {[%clk 0:02:55.4]}
8... a5 {[%clk 0:02:55.5]} 9. e5 {[%clk 0:02:48.4]} 9... Nfd7 {[%clk 0:02:41.4]}
10. exd6 {[%clk 0:02:31.2]} 10... exd6 {[%clk 0:02:36.5]} 11. Ne4 {[%clk
0:02:31.3]} 11... Qc7 {[%clk 0:02:31.9]} 12. Bf4 {[%clk 0:02:22.3]} 12... O-O
{[%clk 0:02:13.5]} 13. Bxd6 {[%clk 0:02:15.6]} 13... Qb6 {[%clk 0:02:13.8]} 14.
Kb1 {[%clk 0:01:16.1]} 14... Re8 {[%clk 0:02:09.5]} 15. Ne2 {[%clk 0:01:14.7]}
15... b4 {[%clk 0:01:57.5]} 16. a4 {[%clk 0:01:08.5]} 16... b3 {[%clk 0:01:53]}
17. c3 {[%clk 0:01:03.3]} 17... Nf6 {[%clk 0:01:51.1]} 18. Nxf6+ {[%clk
0:00:52.3]} 18... Bxf6 {[%clk 0:01:50.1]} 19. Ng3 {[%clk 0:00:52.6]} 19... Na6
{[%clk 0:01:38.1]} 20. Ne4 {[%clk 0:00:47.4]} 20... Bf5 {[%clk 0:01:34.8]} 21.
Bd3 {[%clk 0:00:47.9]} 21... Bg7 {[%clk 0:01:35.2]} 22. Bc5 {[%clk 0:00:40.8]}
22... Nxc5 {[%clk 0:01:29.4]} 23. Nxc5 {[%clk 0:00:41.7]} 23... Bxd3+ {[%clk
0:01:29.7]} 24. Qxd3 {[%clk 0:00:42.6]} 24... Bf8 {[%clk 0:01:29.1]} 25. Nd7
{[%clk 0:00:38.7]} 25... Qc7 {[%clk 0:01:18.4]} 26. Nf6+ {[%clk 0:00:37.1]}
26... Kg7 {[%clk 0:01:16.4]} 27. Nxe8+ {[%clk 0:00:38]} 27... Rxe8 {[%clk
0:01:16.4]} 28. Qc4 {[%clk 0:00:30.9]} 28... Rb8 {[%clk 0:01:13.3]} 29. g3
{[%clk 0:00:23.6]} 29... Qd7 {[%clk 0:01:10.6]} 30. Rhe1 {[%clk 0:00:22.4]}
30... Qf5+ {[%clk 0:01:07.9]} 31. Qd3 {[%clk 0:00:21.6]} 31... Qf6 {[%clk
0:01:05.7]} 32. Qe4 {[%clk 0:00:20.3]} 32... Bd6 {[%clk 0:01:04.1]} 33. Qxc6
{[%clk 0:00:20]} 33... Qf5+ {[%clk 0:01:01.8]} 34. Qe4 {[%clk 0:00:20.1]} 34...
Qd7 {[%clk 0:01:01.9]} 35. d5 {[%clk 0:00:16]} 35... Bb4 {[%clk 0:00:45.8]} 36.
Qe5+ {[%clk 0:00:16.3]} 36... Kh7 {[%clk 0:00:45.2]} 37. Qxb8 {[%clk 0:00:16.7]}
37... Qxa4 {[%clk 0:00:45.1]} 38. cxb4 {[%clk 0:00:17.2]} 38... Qa2+ {[%clk
0:00:43.9]} 39. Kc1 {[%clk 0:00:17.8]} 39... Qa1+ {[%clk 0:00:44.5]} 40. Kd2
{[%clk 0:00:18.5]} 40... Qxb2+ {[%clk 0:00:45.2]} 41. Ke3 {[%clk 0:00:19]} 41...
a4 {[%clk 0:00:42.1]} 42. Qc7 {[%clk 0:00:17.3]} 42... Kg7 {[%clk 0:00:40]} 43.
Rd2 {[%clk 0:00:16.7]} 43... Qf6 {[%clk 0:00:38.3]} 44. Qc1 {[%clk 0:00:16.3]}
44... h4 {[%clk 0:00:31.9]} 45. Kf2 {[%clk 0:00:16.4]} 45... hxg3+ {[%clk
0:00:30.7]} 46. hxg3 {[%clk 0:00:17.3]} 46... Qb6+ {[%clk 0:00:29.5]} 47. Kf1
{[%clk 0:00:16.7]} 47... Qxb4 {[%clk 0:00:30.4]} 48. Qb2+ {[%clk 0:00:16.9]}
48... Kh7 {[%clk 0:00:29.3]} 49. Qd4 {[%clk 0:00:17.2]} 49... Qxd4 {[%clk
0:00:28.8]} 50. Rxd4 {[%clk 0:00:17.2]} 50... a3 {[%clk 0:00:29.6]} 51. Rb4
{[%clk 0:00:17.5]} 51... b2 {[%clk 0:00:29.8]} 52. Ra4 {[%clk 0:00:16.7]} 52...
a2 {[%clk 0:00:29.5]} 53. Rxa2 {[%clk 0:00:17.4]} 53... b1=Q {[%clk 0:00:29.9]}
54. Rxb1 {[%clk 0:00:18]} 1-0

[Event "Early-Titled-Tuesday-Blitz-May-07-2024"]
[Site "Chess.com"]
[Date "2024.05.07"]
[Round "3"]
[White "Zurability"]
[Black "Baku_Boulevard"]
[Result "0-1"]
[WhiteElo "2738"]
[BlackElo "3033"]
[TimeControl "180+1"]
[EndTime "8:32:10 PDT"]
[Termination "Baku_Boulevard won on time"]

1. e4 {[%clk 0:02:45.6]} 1... c5 {[%clk 0:02:46.1]} 2. Nf3 {[%clk 0:02:43.3]}
2... d6 {[%clk 0:02:46.1]} 3. h3 {[%clk 0:02:41.1]} 3... Nf6 {[%clk 0:02:44.5]}
4. Nc3 {[%clk 0:02:41.1]} 4... g6 {[%clk 0:02:44.1]} 5. Bc4 {[%clk 0:02:36.1]}
5... Nc6 {[%clk 0:02:41.8]} 6. d3 {[%clk 0:02:31.4]} 6... Bg7 {[%clk 0:02:41.3]}
7. a3 {[%clk 0:02:31.4]} 7... O-O {[%clk 0:02:41.3]} 8. O-O {[%clk 0:02:30.2]}
8... a6 {[%clk 0:02:41.8]} 9. Be3 {[%clk 0:02:26.6]} 9... b5 {[%clk 0:02:38.4]}
10. Ba2 {[%clk 0:02:26.6]} 10... Bb7 {[%clk 0:02:38.1]} 11. Qd2 {[%clk 0:02:26]}
11... Rc8 {[%clk 0:02:25.8]} 12. Ne2 {[%clk 0:02:06.5]} 12... Ne5 {[%clk
0:02:07.7]} 13. Nh2 {[%clk 0:01:34.3]} 13... c4 {[%clk 0:02:01.6]} 14. f4 {[%clk
0:01:27]} 14... Ned7 {[%clk 0:02:01.5]} 15. f5 {[%clk 0:01:11.7]} 15... d5
{[%clk 0:01:52.2]} 16. exd5 {[%clk 0:01:02.3]} 16... Nxd5 {[%clk 0:01:50.9]} 17.
Bh6 {[%clk 0:01:02.1]} 17... cxd3 {[%clk 0:01:00.8]} 18. cxd3 {[%clk 0:00:53.1]}
18... Qb6+ {[%clk 0:01:00.2]} 19. d4 {[%clk 0:00:53.2]} 19... N7f6 {[%clk
0:00:53.3]} 20. Bxg7 {[%clk 0:00:38.7]} 20... Kxg7 {[%clk 0:00:53.1]} 21. Ng4
{[%clk 0:00:39]} 21... Nxg4 {[%clk 0:00:41.8]} 22. hxg4 {[%clk 0:00:39.9]} 22...
Nf6 {[%clk 0:00:32.5]} 23. g5 {[%clk 0:00:31.5]} 23... Ne4 {[%clk 0:00:32.4]}
24. Qf4 {[%clk 0:00:23.2]} 24... gxf5 {[%clk 0:00:21.3]} 25. Qe5+ {[%clk
0:00:19.6]} 25... Kg8 {[%clk 0:00:20.5]} 26. Rxf5 {[%clk 0:00:15.7]} 26... Qd6
{[%clk 0:00:18.6]} 27. Raf1 {[%clk 0:00:11.6]} 27... Qxe5 {[%clk 0:00:18.4]} 28.
dxe5 {[%clk 0:00:12.3]} 28... e6 {[%clk 0:00:18.4]} 29. R5f4 {[%clk 0:00:12.6]}
29... Rc2 {[%clk 0:00:15.7]} 30. Nd4 {[%clk 0:00:12.8]} 30... Rxb2 {[%clk
0:00:16]} 31. Bxe6 {[%clk 0:00:13.4]} 31... Nxg5 {[%clk 0:00:15.7]} 32. Rg4
{[%clk 0:00:10.9]} 32... h6 {[%clk 0:00:15.4]} 33. Bf5 {[%clk 0:00:04.4]} 33...
Kh8 {[%clk 0:00:10.6]} 34. Bb1 {[%clk 0:00:04]} 34... Rd8 {[%clk 0:00:09.5]} 35.
Nf5 {[%clk 0:00:04.1]} 35... Rdd2 {[%clk 0:00:09.3]} 36. Ne3 {[%clk 0:00:03.6]}
36... Re2 {[%clk 0:00:09.6]} 37. Rg3 {[%clk 0:00:02.8]} 37... Rxe3 {[%clk
0:00:10.1]} 38. Rxe3 {[%clk 0:00:02.3]} 38... Rxg2+ {[%clk 0:00:10.6]} 39. Kh1
{[%clk 0:00:02.9]} 39... Rg3+ {[%clk 0:00:09.7]} 40. Be4 {[%clk 0:00:02.8]}
40... Nxe4 {[%clk 0:00:09.8]} 0-1